[Event "WYCC 2018 O14"]
[Site "Halkidiki"]
[Date "2018.10.24"]
[Round "6"]
[White "Trushko, Andrii"]
[Black "Mishra, Abhimanyu"]
[Result "0-1"]
[ECO "D00"]
[WhiteElo "1906"]
[BlackElo "2149"]
[Annotator "NA"]
[PlyCount "82"]
[EventDate "2018.10.20"]
[EventType "swiss"]
[EventCountry "GRE"]
[SourceTitle "playchess.com"]
[Source "ChessBase"]
[SourceQuality "1"]
[TimeControl "40/5400+30:1800+30"]

1. d4 {[%emt 0:00:00]} d5 {[%emt 0:00:00]} 2. Bf4 {[%emt 0:00:08]} Nf6 {[%emt 0:00:00]} 3. e3 {[%emt 0:00:04]} e6 {[%emt 0:03:52]} 4. Nd2 {[%emt 0:00:41]} c5 {[%emt 0:01:04]} 5. c3 {[%emt 0:00:02]} Nc6 {[%emt 0:00:24]} 6. Ngf3 {[%emt 0:00:24]} cxd4 {[%emt 0:01:15]} 7. cxd4 {[%emt 0:00:08]} Bd6 {[%emt 0:06:55]} 8. Bxd6 {[%emt 0:00:06]} Qxd6 {[%emt 0:00:14]} 9. Bb5 {[%emt 0:00:02]} Bd7 {[%emt 0:03:51]} 10. Bxc6 {[%emt 0:00:13]} Bxc6 {[%emt 0:02:34]} 11. O-O {[%emt 0:01:19]} Nd7 {[%emt 0:11:51]} 12. Rc1 {[%emt 0:01:42]} O-O {[%emt 0:02:42]} 13. a3 {[%emt 0:03:25]} Nb6 {[%emt 0:08:03]} 14. Re1 {[%emt 0:13:31]} Rac8 {[%emt 0:05:43]} 15. Qb3 {[%emt 0:00:44]} Ba4 {[%emt 0:07:54]} 16. Qd3 {[%emt 0:00:05]} a6 {[%emt 0:04:08]} 17. Ng5 {[%emt 0:09:47]} g6 {[%emt 0:08:08]} 18. f4 {[%emt 0:01:19]} Rc7 {[%emt 0:04:01]} 19. b4 {[%emt 0:06:31]} Rfc8 {[%emt 0:05:44]} 20. Rc5 {[%emt 0:16:22]} Bb5 {[%emt 0:03:13]} 21. Qb3 {[%emt 0:00:07]} Na4 {[%emt 0:01:58]} 22. Rec1 {[%emt 0:04:03]} Nxc5 {[%emt 0:01:46]} 23. bxc5 {[%emt 0:00:51]} Qd7 {[%emt 0:01:06]} 24. Ra1 {[%emt 0:00:31]} a5 {[%emt 0:04:58]} 25. Nb1 {[%emt 0:10:32]} Bc4 {[%emt 0:04:16]} 26. Qb6 {[%emt 0:00:39]} Qb5 {[%emt 0:01:25]} 27. Qxb5 {[%emt 0:00:06]} Bxb5 {[%emt 0:00:01]} 28. Nc3 {[%emt 0:00:09]} Bc6 {[%emt 0:02:03]} 29. Rb1 {[%emt 0:00:06]} b5 {[%emt 0:00:44]} 30. Nxb5 {[%emt 0:06:36]} Rb7 {[%emt 0:00:15]} 31. Nc3 {[%emt 0:01:49]} Rxb1+ {[%emt 0:00:52]} 32. Nxb1 {[%emt 0:00:05]} Rb8 {[%emt 0:00:32]} 33. Nd2 {[%emt 0:00:04]} Rb2 {[%emt 0:00:56]} 34. Ngf3 {[%emt 0:00:17]} Bb5 {[%emt 0:00:38]} 35. e4 {[%emt 0:03:26]} Ra2 {[%emt 0:01:08]} 36. exd5 {[%emt 0:00:12]} exd5 {[%emt 0:00:28]} 37. Kf2 {[%emt 0:03:37]} a4 {[%emt 0:00:57]} 38. g4 {[%emt 0:00:29]} Rxa3 {[%emt 0:00:25]} 39. Ne5 {[%emt 0:00:10]} Ra2 {[%emt 0:00:48]} 40. Ke3 {[%emt 0:00:00]} a3 {[%emt 0:00:00]} 41. Nd3 {[%emt 0:03:52]} Rxd2 {[%emt 0:02:58]} 0-1

[Event "WYCC 2018 O14"]
[Site "Halkidiki"]
[Date "2018.10.24"]
[Round "6"]
[White "Kouvidis, Ioannis"]
[Black "Wang, Alex"]
[Result "1-0"]
[ECO "B24"]
[WhiteElo "1896"]
[BlackElo "2076"]
[Annotator "NA"]
[PlyCount "71"]
[EventDate "2018.10.20"]
[EventType "swiss"]
[EventCountry "GRE"]
[SourceTitle "playchess.com"]
[Source "ChessBase"]
[SourceQuality "1"]
[TimeControl "40/5400+30:1800+30"]

1. e4 {[%emt 0:00:00]} c5 {[%emt 0:00:00]} 2. Nc3 {[%emt 0:00:00]} Nc6 {[%emt 0:00:00]} 3. g3 {[%emt 0:00:00]} g6 {[%emt 0:00:00]} 4. Bg2 {[%emt 0:00:00]} Bg7 {[%emt 0:00:00]} 5. d3 {[%emt 0:00:13]} e6 {[%emt 0:01:00]} 6. Be3 {[%emt 0:00:11]} d6 {[%emt 0:00:32]} 7. Qd2 {[%emt 0:03:43]} Rb8 {[%emt 0:02:04]} 8. Nge2 {[%emt 0:00:49]} Nd4 {[%emt 0:01:12]} 9. Nd1 {[%emt 0:04:07]} b5 $11 {[%emt 0:14:36] LiveBook: 6 Games} 10. Nc1 {[%emt 0:03:42]} b4 {[%emt 0:21:04]} 11. c3 {[%emt 0:00:24]} Nc6 {[%emt 0:07:26]} 12. Ne2 {[%emt 0:03:23]} Ba6 {[%emt 0:01:05]} 13. f3 {[%emt 0:19:11]} Qa5 {[%emt 0:09:14]} 14. O-O {[%emt 0:21:05]} Nge7 {[%emt 0:00:36]} 15. Nf2 {[%emt 0:00:24]} O-O {[%emt 0:12:25]} 16. h4 {[%emt 0:05:47]} bxc3 {[%emt 0:10:48]} 17. bxc3 {[%emt 0:00:46]} Qa3 {[%emt 0:00:10]} 18. Rfb1 {[%emt 0:04:29]} Rfe8 {[%emt 0:01:21]} 19. h5 {[%emt 0:10:31]} f5 {[%emt 0:02:39]} 20. hxg6 {[%emt 0:01:05]} Nxg6 {[%emt 0:00:09]} 21. Qc2 {[%emt 0:03:44]} Nce5 {[%emt 0:02:47]} 22. f4 {[%emt 0:01:46]} Nd7 {[%emt 0:00:59]} 23. Rb3 {[%emt 0:01:52]} Qa5 {[%emt 0:01:11]} 24. Rxb8 {[%emt 0:05:11]} Rxb8 {[%emt 0:00:06]} 25. Rb1 {[%emt 0:00:18]} Ne7 {[%emt 0:03:20]} 26. Rxb8+ {[%emt 0:00:19]} Nxb8 {[%emt 0:00:08]} 27. Qb3 {[%emt 0:00:06]} Nbc6 {[%emt 0:01:39]} 28. Qxe6+ {[%emt 0:00:18]} Kf8 {[%emt 0:01:24]} 29. exf5 Bc8 {[%emt 0:00:05]} 30. Qxd6 {[%emt 0:01:20]} Qxa2 {[%emt 0:02:07]} 31. Bxc6 {[%emt 0:01:35]} Bxf5 {[%emt 0:03:15]} 32. Qd8+ {[%emt 0:01:09]} Kf7 {[%emt 0:00:08]} 33. Be8+ {[%emt 0:00:52]} Ke6 {[%emt 0:01:34]} 34. Qd7+ {[%emt 0:00:24]} Kf6 {[%emt 0:00:03]} 35. Qd6+ {[%emt 0:00:27]} Be6 {[%emt 0:00:40]} 36. Qe5# 1-0

[Event "WYCC 2018 O14"]
[Site "Halkidiki"]
[Date "2018.10.24"]
[Round "6"]
[White "Ngo, Duc Tri"]
[Black "Ognean, Mihnea-Ionut"]
[Result "0-1"]
[ECO "B30"]
[WhiteElo "1883"]
[BlackElo "2291"]
[Annotator "NA"]
[PlyCount "106"]
[EventDate "2018.10.20"]
[EventType "swiss"]
[EventCountry "GRE"]
[SourceTitle "playchess.com"]
[Source "ChessBase"]
[SourceQuality "1"]
[TimeControl "40/5400+30:1800+30"]

1. e4 {[%emt 0:00:01]} c5 {[%emt 0:00:00]} 2. Nf3 {[%emt 0:01:49]} Nc6 {[%emt 0:00:08]} 3. d3 {[%emt 0:01:27]} g6 {[%emt 0:00:51]} 4. g3 {[%emt 0:07:25]} Bg7 {[%emt 0:00:09]} 5. Bg2 {[%emt 0:00:18]} e6 {[%emt 0:00:40]} 6. O-O {[%emt 0:01:29]} Nge7 {[%emt 0:00:15]} 7. c3 {[%emt 0:06:04]} O-O {[%emt 0:00:09]} 8. Be3 {[%emt 0:00:02]} b6 {[%emt 0:03:49] LiveBook: 66 Games} 9. Qc1 {[%emt 0:05:56]} d5 {[%emt 0:11:28]} 10. exd5 {[%emt 0:06:38]} Nxd5 {[%emt 0:04:09]} 11. Bh6 {[%emt 0:00:09]} Bb7 {[%emt 0:01:43]} 12. Na3 {[%emt 0:16:36]} Qd7 {[%emt 0:15:43]} 13. Re1 $11 {[%emt 0:11:46]} Rad8 {[%emt 0:12:04]} 14. Qd2 {[%emt 0:10:33]} Nde7 {[%emt 0:11:13]} 15. Bxg7 {[%emt 0:01:26]} Kxg7 {[%emt 0:00:05]} 16. Rad1 {[%emt 0:00:05]} Nf5 {[%emt 0:03:15]} 17. Qf4 {[%emt 0:04:18]} f6 {[%emt 0:05:04]} 18. g4 {[%emt 0:10:22]} e5 {[%emt 0:04:10]} 19. Qa4 {[%emt 0:00:03]} Nfe7 {[%emt 0:03:32]} 20. h3 {[%emt 0:01:00]} a6 {[%emt 0:08:00]} 21. g5 {[%emt 0:00:07]} Qf5 {[%emt 0:05:30]} 22. Qg4 {[%emt 0:02:44]} fxg5 {[%emt 0:00:29]} 23. Qxg5 {[%emt 0:00:06]} Nd5 {[%emt 0:03:20]} 24. Qg3 {[%emt 0:06:38]} Nf4 {[%emt 0:01:46]} 25. Nh4 {[%emt 0:00:03]} Qe6 {[%emt 0:01:23]} 26. Nc4 {[%emt 0:00:26]} b5 {[%emt 0:00:37]} 27. Nxe5 {[%emt 0:00:41]} Nxe5 {[%emt 0:00:37]} 28. Bxb7 {[%emt 0:00:12]} Nxh3+ {[%emt 0:00:06]} 29. Kh2 {[%emt 0:01:52]} Nxf2 {[%emt 0:01:54]} 30. Bf3 {[%emt 0:00:09]} Nxf3+ {[%emt 0:01:51]} 31. Nxf3 {[%emt 0:00:05]} Qf6 {[%emt 0:00:21]} 32. Qxf2 {[%emt 0:03:04]} Qxf3 {[%emt 0:00:04]} 33. Re7+ {[%emt 0:02:18]} Kg8 {[%emt 0:00:36]} 34. Qe2 Qxe2+ {[%emt 0:00:34]} 35. Rxe2 {[%emt 0:00:21]} Rfe8 {[%emt 0:00:44]} 36. Rf2 {[%emt 0:00:52]} Re3 {[%emt 0:00:22]} 37. d4 {[%emt 0:00:06]} cxd4 {[%emt 0:00:03]} 38. cxd4 {[%emt 0:00:04]} Kg7 {[%emt 0:00:58]} 39. d5 {[%emt 0:00:35]} Rd6 {[%emt 0:00:03]} 40. Rc2 {[%emt 0:00:00]} Re5 {[%emt 0:00:00]} 41. Rcd2 {[%emt 0:01:00]} g5 {[%emt 0:00:46]} 42. Kg3 {[%emt 0:00:15]} Kg6 {[%emt 0:00:07]} 43. Kf3 {[%emt 0:13:19]} h5 {[%emt 0:00:06]} 44. Rd4 {[%emt 0:02:50]} Kf5 {[%emt 0:02:58]} 45. a4 {[%emt 0:01:28]} bxa4 {[%emt 0:00:38]} 46. Rxa4 {[%emt 0:00:09]} Rexd5 {[%emt 0:02:30]} 47. Rxd5+ {[%emt 0:00:14]} Rxd5 {[%emt 0:00:04]} 48. Rxa6 {[%emt 0:00:03]} h4 {[%emt 0:01:27]} 49. b4 {[%emt 0:01:37]} Rd3+ {[%emt 0:00:09]} 50. Kf2 {[%emt 0:00:36]} Rb3 {[%emt 0:00:09]} 51. Rb6 {[%emt 0:01:43]} Kg4 {[%emt 0:00:12]} 52. b5 {[%emt 0:00:11]} Rb2+ {[%emt 0:00:08]} 53. Kg1 {[%emt 0:00:28]} Kg3 {[%emt 0:00:14]} 0-1

[Event "WYCC 2018 O14"]
[Site "Halkidiki"]
[Date "2018.10.24"]
[Round "6"]
[White "Naqopia, Giorgi"]
[Black "Risteski, Emil"]
[Result "1-0"]
[ECO "B50"]
[WhiteElo "1857"]
[BlackElo "2120"]
[Annotator "NA"]
[PlyCount "89"]
[EventDate "2018.10.20"]
[EventType "swiss"]
[EventCountry "GRE"]
[SourceTitle "playchess.com"]
[Source "ChessBase"]
[SourceQuality "1"]
[TimeControl "40/5400+30:1800+30"]

1. e4 {[%emt 0:00:00]} c5 {[%emt 0:00:00]} 2. Nf3 {[%emt 0:00:00]} d6 {[%emt 0:00:00]} 3. c4 {[%emt 0:00:00]} Bg4 {[%emt 0:04:53]} 4. Be2 {[%emt 0:00:30]} Nc6 {[%emt 0:00:07]} 5. O-O {[%emt 0:00:38]} g6 {[%emt 0:01:16]} 6. Nc3 {[%emt 0:01:40]} Bg7 {[%emt 0:00:46]} 7. d3 {[%emt 0:00:45]} e6 {[%emt 0:00:48]} 8. Be3 {[%emt 0:00:19]} Bxf3 {[%emt 0:02:04]} 9. Bxf3 {[%emt 0:00:12]} Nge7 {[%emt 0:00:05]} 10. Qd2 {[%emt 0:07:44]} O-O {[%emt 0:01:18]} 11. Bh6 {[%emt 0:00:11]} Nd4 {[%emt 0:01:07]} 12. Bxg7 {[%emt 0:00:55]} Kxg7 {[%emt 0:02:02]} 13. Be2 {[%emt 0:00:13]} Nec6 {[%emt 0:00:31]} 14. f4 $15 {[%emt 0:01:00]} a6 {[%emt 0:01:23]} 15. Rae1 {[%emt 0:26:48]} b5 {[%emt 0:02:51]} 16. f5 {[%emt 0:21:26]} exf5 {[%emt 0:03:03]} 17. exf5 {[%emt 0:00:15]} Nxf5 {[%emt 0:01:33]} 18. Rxf5 {[%emt 0:04:24]} gxf5 {[%emt 0:00:34]} 19. Bf3 {[%emt 0:00:03]} Rc8 {[%emt 0:07:50]} 20. Bxc6 {[%emt 0:00:32]} Rxc6 {[%emt 0:00:06]} 21. Nd5 {[%emt 0:00:10]} f6 {[%emt 0:09:59]} 22. Re7+ {[%emt 0:21:28]} Rf7 {[%emt 0:00:49]} 23. Rxf7+ {[%emt 0:00:03]} Kxf7 {[%emt 0:00:06]} 24. Qh6 {[%emt 0:00:03]} Qh8 {[%emt 0:05:26]} 25. Qh5+ {[%emt 0:02:56]} Kf8 {[%emt 0:04:30]} 26. Qxf5 {[%emt 0:00:45]} Qg7 {[%emt 0:01:59]} 27. Nxf6 {[%emt 0:02:51]} Qf7 {[%emt 0:01:52]} 28. Nxh7+ {[%emt 0:05:20]} Kg7 {[%emt 0:00:33]} 29. Qe4 {[%emt 0:00:48]} d5 {[%emt 0:00:48]} 30. cxd5 {[%emt 0:02:07]} Rg6 {[%emt 0:00:54]} 31. h4 {[%emt 0:00:06]} Rh6 {[%emt 0:05:13]} 32. Ng5 {[%emt 0:00:11]} Qf6 {[%emt 0:00:14]} 33. Ne6+ {[%emt 0:00:42]} Kh8 {[%emt 0:00:29]} 34. Ng5 {[%emt 0:00:33]} Kg7 {[%emt 0:00:34]} 35. g3 {[%emt 0:00:22]} Qd4+ {[%emt 0:04:28]} 36. Qxd4+ {[%emt 0:00:05]} cxd4 {[%emt 0:00:04]} 37. Ne4 {[%emt 0:00:02]} Rh8 {[%emt 0:00:39]} 38. b4 {[%emt 0:00:16]} Rc8 {[%emt 0:00:53]} 39. Nc5 {[%emt 0:00:52]} a5 {[%emt 0:01:44]} 40. d6 {[%emt 0:00:00]} Kf6 {[%emt 0:00:00]} 41. d7 {[%emt 0:03:25]} Rd8 {[%emt 0:06:46]} 42. bxa5 {[%emt 0:00:04]} Ke7 {[%emt 0:00:16]} 43. a6 {[%emt 0:00:15]} Rf8 {[%emt 0:00:46]} 44. Kg2 {[%emt 0:00:58]} Kd6 {[%emt 0:14:42]} 45. d8=Q+ 1-0

[Event "WYCC 2018 O14"]
[Site "Halkidiki"]
[Date "2018.10.26"]
[Round "7"]
[White "Raja Rithvik R"]
[Black "Tengis, Tsog-Ochir"]
[Result "1/2-1/2"]
[ECO "A15"]
[WhiteElo "2421"]
[BlackElo "2205"]
[Annotator "NA RC"]
[PlyCount "44"]
[EventDate "2018.10.20"]
[EventType "swiss"]
[EventCountry "GRE"]
[SourceTitle "playchess.com"]
[Source "ChessBase"]
[SourceQuality "1"]
[TimeControl "40/5400+30:1800+30"]

1. c4 {[%emt 0:00:00]} Nf6 {[%emt 0:00:00]} 2. Nf3 {[%emt 0:00:00]} c6 {[%emt 0:00:21]} 3. Nc3 {[%emt 0:01:47]} d5 {[%emt 0:00:03]} 4. e3 {[%emt 0:00:18]} g6 {[%emt 0:01:28]} 5. d4 {[%emt 0:00:04]} Bg7 {[%emt 0:00:08]} 6. Be2 {[%emt 0:00:03]} O-O {[%emt 0:00:11]} 7. O-O {[%emt 0:00:03]} Ne4 {[%emt 0:03:44] LiveBook: 59 Games} 8. cxd5 {[%emt 0:04:39] D94: Grünfeld: 4 Nf3 Bg7 5 e3} (8. a4 b6 9. a5 Ba6 10. Nxe4 dxe4 11. Ng5 e5 12. Nxe4 exd4 13. exd4 Bxd4 14. Bg5 f6 15. Be3 c5 16. Bxd4 cxd4 {1-0 (40) Bu,X (2712)-Van Wely,L (2642) Batumi 2018}) 8... cxd5 {[%emt 0:00:20]} 9. Qb3 {[%emt 0:03:26]} e6 $146 {[%emt 0:07:55]} ({Predecessor:} 9... Nxc3 10. bxc3 Nc6 11. Ba3 b6 12. Rfc1 Na5 13. Qb4 Re8 14. h3 Bf8 15. Qb2 Qc7 {1-0 (39) Danielsen,H (2445)-Jelling,E (2400) Denmark 1993}) 10. Nxe4 {[%emt 0:00:32]} dxe4 {[%emt 0:00:04]} 11. Nd2 {[%emt 0:00:02]} f5 {[%emt 0:01:02]} 12. Nc4 {[%emt 0:01:48]} Nc6 {[%emt 0:02:18]} 13. Bd2 {[%emt 0:03:05]} f4 {[%emt 0:01:35]} 14. exf4 {[%emt 0:01:08]} Nxd4 {[%emt 0:00:22]} 15. Qd1 {[%emt 0:00:04]} b6 {[%emt 0:05:11]} 16. Ne5 {[%emt 0:07:33]} Bxe5 {[%emt 0:04:45]} 17. fxe5 $11 {[%emt 0:00:19]} Nxe2+ {[%emt 0:00:03]} 18. Qxe2 {[%emt 0:00:05]} Qd3 {[%emt 0:00:06]} 19. Rfe1 {[%emt 0:03:58]} Qxe2 {[%emt 0:03:17]} 20. Rxe2 {[%emt 0:00:03]} Bb7 {[%emt 0:00:11]} 21. Rc1 {[%emt 0:04:53]} Rac8 {[%emt 0:00:42]} 22. Ree1 {[%emt 0:02:07]} Bd5 {[%emt 0:01:05]} 1/2-1/2

[Event "WYCC 2018 O14"]
[Site "Halkidiki"]
[Date "2018.10.26"]
[Round "7"]
[White "Spyropoulos, Nikolaos"]
[Black "Runets, Ivan"]
[Result "1-0"]
[ECO "B84"]
[WhiteElo "2378"]
[BlackElo "2047"]
[Annotator "NA"]
[PlyCount "79"]
[EventDate "2018.10.20"]
[EventType "swiss"]
[EventCountry "GRE"]
[SourceTitle "playchess.com"]
[Source "ChessBase"]
[SourceQuality "1"]
[TimeControl "40/5400+30:1800+30"]

1. e4 {[%emt 0:00:00]} c5 {[%emt 0:01:31]} 2. Nf3 {[%emt 0:00:00]} d6 {[%emt 0:00:07]} 3. d4 {[%emt 0:01:06]} cxd4 {[%emt 0:00:12]} 4. Nxd4 {[%emt 0:00:14]} Nf6 {[%emt 0:00:10]} 5. Nc3 {[%emt 0:00:04]} a6 {[%emt 0:00:37]} 6. Be2 {[%emt 0:00:47]} e6 {[%emt 0:04:35]} 7. Be3 {[%emt 0:00:25]} b5 {[%emt 0:03:12]} 8. Bf3 {[%emt 0:02:37]} e5 {[%emt 0:18:41]} 9. Nf5 {[%emt 0:00:31]} g6 {[%emt 0:09:54]} 10. Nh6 {[%emt 0:03:25]} Be6 {[%emt 0:04:24]} 11. Qd2 {[%emt 0:12:19]} Nbd7 {[%emt 0:09:01]} 12. O-O {[%emt 0:10:00]} Be7 {[%emt 0:06:21]} 13. a3 {[%emt 0:07:10]} Kf8 {[%emt 0:06:11]} 14. g4 {[%emt 0:10:01]} Nb6 {[%emt 0:08:47]} 15. b3 {[%emt 0:02:57]} Rc8 {[%emt 0:01:07]} 16. Rac1 {[%emt 0:14:36]} Nbd7 {[%emt 0:08:16]} 17. Ne2 {[%emt 0:07:21]} Nc5 {[%emt 0:02:01]} 18. Nc3 {[%emt 0:02:58]} Qd7 {[%emt 0:04:17]} 19. Bg5 {[%emt 0:04:13]} Ng8 {[%emt 0:02:12]} 20. Bxe7+ {[%emt 0:10:43]} Qxe7 {[%emt 0:00:18]} 21. Bg2 {[%emt 0:00:39]} Kg7 {[%emt 0:00:58]} 22. g5 {[%emt 0:01:44]} f6 {[%emt 0:04:34]} 23. h4 {[%emt 0:00:19]} Nxh6 {[%emt 0:01:09]} 24. gxh6+ {[%emt 0:00:05]} Kf7 {[%emt 0:00:09]} 25. f4 {[%emt 0:00:05]} exf4 {[%emt 0:00:24]} 26. Rxf4 {[%emt 0:01:08]} Rhf8 {[%emt 0:00:37]} 27. Nd5 {[%emt 0:03:26]} Bxd5 {[%emt 0:00:39]} 28. Qxd5+ {[%emt 0:00:05]} Qe6 {[%emt 0:01:11]} 29. Qd2 {[%emt 0:02:56]} Qe5 {[%emt 0:00:53]} 30. Rd1 {[%emt 0:01:32]} Rcd8 {[%emt 0:01:21]} 31. Qf2 {[%emt 0:01:07]} Kg8 {[%emt 0:01:01]} 32. Rd5 {[%emt 0:00:49]} Qe7 {[%emt 0:00:30]} 33. Rd1 {[%emt 0:00:34]} Rf7 {[%emt 0:00:38]} 34. b4 {[%emt 0:00:31]} Ne6 {[%emt 0:00:29]} 35. Rf3 {[%emt 0:00:07]} Nf8 {[%emt 0:00:27]} 36. Rfd3 {[%emt 0:00:45]} Qc7 {[%emt 0:00:34]} 37. e5 {[%emt 0:00:35]} Kh8 {[%emt 0:00:29]} 38. exd6 {[%emt 0:00:10]} Qa7 {[%emt 0:00:30]} 39. Re3 {[%emt 0:00:54]} Nd7 {[%emt 0:00:26]} 40. Re8+ {[%emt 0:00:00] Nb8} 1-0

[Event "WYCC 2018 O14"]
[Site "Halkidiki"]
[Date "2018.10.26"]
[Round "7"]
[White "Kacharava, Nikolozi"]
[Black "Vitenberg, Noam Aviv"]
[Result "1-0"]
[ECO "B10"]
[WhiteElo "2373"]
[BlackElo "2175"]
[Annotator "NA"]
[PlyCount "47"]
[EventDate "2018.10.20"]
[EventType "swiss"]
[EventCountry "GRE"]
[SourceTitle "playchess.com"]
[Source "ChessBase"]
[SourceQuality "1"]
[TimeControl "40/5400+30:1800+30"]

1. e4 {[%emt 0:00:00]} c6 {[%emt 0:00:00]} 2. Nc3 {[%emt 0:00:13]} d5 {[%emt 0:00:00]} 3. Nf3 {[%emt 0:00:44]} Nf6 {[%emt 0:00:00]} 4. e5 {[%emt 0:00:54]} Ne4 {[%emt 0:00:00]} 5. Ne2 {[%emt 0:00:59]} Qb6 {[%emt 0:00:00]} 6. d4 {[%emt 0:00:50]} e6 {[%emt 0:00:05]} 7. Nfg1 {[%emt 0:01:26]} f6 {[%emt 0:00:05]} 8. f3 {[%emt 0:01:08]} Ng5 {[%emt 0:00:04]} 9. exf6 {[%emt 0:02:03]} gxf6 {[%emt 0:00:05]} 10. f4 {[%emt 0:00:58]} Nf7 {[%emt 0:00:06]} 11. Nf3 {[%emt 0:01:28]} e5 {[%emt 0:00:05]} 12. fxe5 {[%emt 0:01:49]} fxe5 {[%emt 0:00:04]} 13. Ng3 {[%emt 0:01:34]} Bg4 $11 {[%emt 0:10:04]} 14. Be2 {[%emt 0:11:06]} Nd7 {[%emt 0:39:31]} 15. Ng5 {[%emt 0:14:36]} Bxe2 {[%emt 0:22:57]} 16. Qxe2 {[%emt 0:00:38]} Nxg5 {[%emt 0:07:10]} 17. Bxg5 {[%emt 0:00:56]} Rg8 {[%emt 0:02:04]} 18. Qh5+ {[%emt 0:05:30]} Rg6 {[%emt 0:00:05]} 19. O-O-O {[%emt 0:01:15]} c5 {[%emt 0:10:12]} 20. dxe5 {[%emt 0:05:03]} Nxe5 {[%emt 0:01:17]} 21. Rhe1 {[%emt 0:04:41]} Kf7 {[%emt 0:01:52]} 22. Qxh7+ {[%emt 0:05:06]} Bg7 {[%emt 0:01:11]} 23. Rxe5 {[%emt 0:01:09]} Rxg5 {[%emt 0:01:13]} 24. Rf1+ {[%emt 0:00:19]} 1-0

[Event "WYCC 2018 O14"]
[Site "Halkidiki"]
[Date "2018.10.26"]
[Round "7"]
[White "Pogosyan, Stefan"]
[Black "Avila Pavas, Santiago"]
[Result "0-1"]
[ECO "E63"]
[WhiteElo "2373"]
[BlackElo "2277"]
[Annotator "NA"]
[PlyCount "62"]
[EventDate "2018.10.20"]
[EventType "swiss"]
[EventCountry "GRE"]
[SourceTitle "playchess.com"]
[Source "ChessBase"]
[SourceQuality "1"]
[TimeControl "40/5400+30:1800+30"]

1. Nf3 {[%emt 0:00:00]} g6 {[%emt 0:00:15]} 2. g3 {[%emt 0:00:00]} Nf6 {[%emt 0:00:34]} 3. Bg2 {[%emt 0:00:00]} Bg7 {[%emt 0:00:07]} 4. d4 {[%emt 0:00:00]} O-O {[%emt 0:00:27]} 5. O-O {[%emt 0:00:08]} d6 {[%emt 0:00:30]} 6. c4 {[%emt 0:00:09]} Nc6 {[%emt 0:01:10]} 7. Nc3 {[%emt 0:00:11]} a6 {[%emt 0:00:19]} 8. d5 {[%emt 0:04:09]} Na5 {[%emt 0:00:50]} 9. Nd2 {[%emt 0:00:09]} c5 {[%emt 0:00:45]} 10. Qc2 {[%emt 0:00:11]} Rb8 {[%emt 0:00:52]} 11. b3 $11 {[%emt 0:00:42] LiveBook: 796 Games} b5 {[%emt 0:00:56]} 12. Bb2 {[%emt 0:01:14]} e5 {[%emt 0:01:40]} 13. dxe6 {[%emt 0:19:35]} fxe6 {[%emt 0:03:36]} 14. cxb5 {[%emt 0:05:52]} axb5 {[%emt 0:00:08]} 15. Rad1 {[%emt 0:03:27]} Qe7 {[%emt 0:16:45]} 16. Nde4 {[%emt 0:04:10]} b4 {[%emt 0:16:14]} 17. Nxf6+ {[%emt 0:09:43]} Bxf6 {[%emt 0:00:40]} 18. Ne4 {[%emt 0:00:12]} Bxb2 {[%emt 0:02:22]} 19. Qxb2 {[%emt 0:00:02]} d5 {[%emt 0:02:26]} 20. Nd2 {[%emt 0:00:43]} Ba6 {[%emt 0:11:12]} 21. Nf3 {[%emt 0:12:55]} Nc6 {[%emt 0:02:01]} 22. h4 {[%emt 0:06:06]} c4 {[%emt 0:16:14]} 23. bxc4 {[%emt 0:02:29]} Bxc4 {[%emt 0:00:06]} 24. Rd2 {[%emt 0:02:26]} Ra8 {[%emt 0:05:32]} 25. Qb1 {[%emt 0:00:52]} Ra3 {[%emt 0:04:21]} 26. Ng5 {[%emt 0:07:32]} Nd8 {[%emt 0:04:01]} 27. Re1 {[%emt 0:05:44]} Qa7 {[%emt 0:00:37]} 28. e3 {[%emt 0:00:29]} Qa5 {[%emt 0:02:11]} 29. f4 {[%emt 0:07:38]} b3 {[%emt 0:01:08]} 30. axb3 {[%emt 0:00:53]} Qxd2 {[%emt 0:00:15]} 31. bxc4 {[%emt 0:00:06]} Ra2 {[%emt 0:00:10]} 0-1

[Event "WYCC 2018 O14"]
[Site "Halkidiki"]
[Date "2018.10.26"]
[Round "7"]
[White "Stoyanov, Tsvetan"]
[Black "Turgut, Aydin"]
[Result "1-0"]
[ECO "A20"]
[WhiteElo "2340"]
[BlackElo "2156"]
[Annotator "NA"]
[PlyCount "53"]
[EventDate "2018.10.20"]
[EventType "swiss"]
[EventCountry "GRE"]
[SourceTitle "playchess.com"]
[Source "ChessBase"]
[SourceQuality "1"]
[TimeControl "40/5400+30:1800+30"]

1. c4 {[%emt 0:00:00]} e5 {[%emt 0:00:00]} 2. g3 {[%emt 0:00:00]} c6 {[%emt 0:00:00]} 3. Bg2 {[%emt 0:09:27]} d5 {[%emt 0:00:41]} 4. cxd5 {[%emt 0:09:00]} cxd5 {[%emt 0:00:07]} 5. Qb3 {[%emt 0:01:02]} Nf6 $11 {[%emt 0:03:37] LiveBook: 23 Games} 6. Nc3 {[%emt 0:06:57]} e4 {[%emt 0:13:32]} 7. f3 {[%emt 0:11:19]} Na6 {[%emt 0:30:10]} 8. fxe4 {[%emt 0:11:35]} Nc5 {[%emt 0:01:19]} 9. Qc2 {[%emt 0:01:56]} d4 {[%emt 0:13:59]} 10. Nd5 {[%emt 0:15:56]} Nxd5 {[%emt 0:08:32]} 11. exd5 {[%emt 0:00:06]} d3 {[%emt 0:00:07]} 12. Qc3 {[%emt 0:02:49]} a5 {[%emt 0:17:43]} 13. b3 {[%emt 0:09:39]} Be7 {[%emt 0:04:25]} 14. Bb2 {[%emt 0:00:22]} Bf6 {[%emt 0:00:47]} 15. Qxc5 {[%emt 0:00:06]} Bxb2 {[%emt 0:00:04]} 16. Rb1 {[%emt 0:00:16]} Qf6 {[%emt 0:00:27]} 17. Nf3 {[%emt 0:08:06]} dxe2 {[%emt 0:00:48]} 18. d4 {[%emt 0:02:13]} Bg4 {[%emt 0:01:54]} 19. Rxb2 {[%emt 0:01:59]} Rc8 {[%emt 0:00:39]} 20. Rxe2+ {[%emt 0:01:00]} Kd8 {[%emt 0:00:08]} 21. Qa3 {[%emt 0:00:44]} Rc3 {[%emt 0:00:57]} 22. Qxa5+ {[%emt 0:00:11]} Rc7 {[%emt 0:00:04]} 23. O-O {[%emt 0:00:40]} Bxf3 {[%emt 0:00:16]} 24. Bxf3 {[%emt 0:00:21]} Qxd4+ {[%emt 0:00:05]} 25. Kg2 {[%emt 0:00:04]} b6 {[%emt 0:00:24]} 26. Qa8+ {[%emt 0:00:18]} Rc8 {[%emt 0:00:06]} 27. Qb7 {[%emt 0:00:05]} 1-0